[Event "CCC-GM 2022"]
[Site "Ballerup"]
[Date "2022.05.27"]
[Round "5.4"]
[White "Haubro, Martin"]
[Black "Heimisson, Hilmir Freyr"]
[Result "1-0"]
[ECO "C42"]
[WhiteElo "2428"]
[BlackElo "2323"]
[Annotator "TA"]
[PlyCount "103"]
[EventDate "2022.05.25"]
[EventType "tourn"]
[EventCountry "DEN"]
[SourceTitle "playchess.com"]
[Source "ChessBase"]
[SourceQuality "1"]
[TimeControl "5400+30"]

{[%evp 22,103,20,20,20,21,25,6,21,20,16,17,26,15,42,39,41,42,53,53,35,47,65,33,48,43,54,0,0,0,0,0,0,0,0,0,0,0,46,46,46,46,46,46,108,108,261,297,270,287,299,287,484,469,460,377,469,233,181,110,175,0,332,308,548,0,1914,1189,1003,1910,1177,0,29969,12822,29973,29974,29974,29974,29983,29979,29979,29979,29978,29979]} 1. e4 {[%emt 0:00:03]} e5 {[%emt 0:01:51]} 2. Nf3 {[%emt 0:00:05]} Nf6 {[%emt 0:00:40]} 3. Nxe5 {[%emt 0:00:05]} d6 {[%emt 0:00:08]} 4. Nf3 {[%emt 0:00:03]} Nxe4 {[%emt 0:00:08]} 5. d4 {[%emt 0:00:04]} d5 {[%emt 0:00:08]} 6. Bd3 {[%emt 0:00:06]} Bd6 {[%emt 0:00:08]} 7. O-O {[%emt 0:00:45]} O-O {[%emt 0:00:12]} 8. c4 {[%emt 0:01:25]} c6 {[%emt 0:00:10]} 9. Nc3 {[%emt 0:00:05]} Nxc3 {[%emt 0:00:38]} 10. bxc3 {[%emt 0:00:06]} dxc4 {[%emt 0:00:36]} 11. Bxc4 {[%emt 0:00:06]} Bg4 {[%emt 0:00:15]} 12. h3 {[%emt 0:01:53]} Bh5 {[%emt 0:01:19] C42: Petroff Defence: 3 Nxe5 and unusual White 3rd moves.} 13. g4 $1 {[%emt 0:00:17][%mdl 4] is now more promising than 13.Re1.} Bg6 {[%emt 0:00:43]} 14. Ne5 {[%emt 0:00:06]} Nd7 {[%emt 0:28:40] The position is equal.} 15. Nxg6 {[%emt 0:08:37]} hxg6 {[%emt 0:00:15]} 16. Qf3 {[%emt 0:00:25] [#]} Rc8 $146 {[%emt 0:05:50]} ({Predecessor:} 16... Qf6 17. Kg2 b5 18. Bb3 Qxf3+ 19. Kxf3 Nb6 20. a4 a5 21. Be3 Rfb8 22. h4 Kf8 {½-½ (38) Ter Sahakyan,S (2640)-Nyzhnyk,I (2665) Chess.com INT 2020}) 17. a4 {[%emt 0:18:55]} Qc7 {[%emt 0:07:42]} 18. Be3 {[%emt 0:01:57]} Nb6 {[%emt 0:09:31]} 19. Bb3 {[%emt 0:02:07]} Nd5 {[%emt 0:00:35]} 20. Bxd5 {[%emt 0:02:04]} cxd5 {[%emt 0:00:10]} 21. Qxd5 {[%emt 0:00:06]} Rfd8 {[%emt 0:03:44]} 22. Qg2 {[%emt 0:00:14] Prevents Bh2+. White is more active.} (22. Qf3 $5 {[%cal Rf1c1]}) 22... Bf4 {[%emt 0:02:18]} 23. Rfe1 {[%emt 0:10:00]} g5 {[%emt 0:00:07]} 24. Rac1 {[%emt 0:03:14]} ({White should play} 24. Bxf4 $14 gxf4 25. Rac1) 24... Bxe3 $11 {[%emt 0:06:12]} 25. fxe3 {[%emt 0:00:12]} Qa5 {[%emt 0:01:20]} 26. Qb2 {[%emt 0:10:43]} Rc4 {[%emt 0:05:11]} 27. Qxb7 {[%emt 0:25:42]} Rxc3 {[%emt 0:02:44]} 28. Qe7 {[%emt 0:00:06]} Rxc1 {[%emt 0:09:34]} 29. Rxc1 {[%emt 0:00:06][%mdl 4096] Endgame KQR-KQR} Rb8 {[%emt 0:01:30]} (29... Rf8 $1 $11 {was preferrable.}) 30. Qc7 $36 {[%emt 0:02:44][%mdl 2048] White is more active.} Qb4 {[%emt 0:01:23]} 31. Qxa7 {[%emt 0:00:39]} Qb3 {[%emt 0:03:38]} 32. Qe7 {[%emt 0:01:46]} f6 {[%emt 0:06:36]} (32... Qb2 $1 $14 33. Rf1 f6 34. Qe6+ Kh8) 33. a5 $1 $16 {[%emt 0:01:01] Hoping for a6.} (33. Rc7 Qd1+ 34. Kh2 Rb2+ 35. Kg3 Qg1+ 36. Kf3 Qg2#) 33... Qb2 $2 {[%emt 0:00:55]} (33... Qa2 $16) 34. Rc8+ {[%emt 0:04:44]} Rxc8 {[%emt 0:00:21][%cal Rc8c1]} 35. Qe6+ {[%emt 0:00:04]} Kh7 {[%emt 0:00:33][%cal Rc8c1]} 36. Qf5+ $1 {[%emt 0:00:07]} (36. Qxc8 Qd2 $16) 36... Kh6 $2 {[%emt 0:00:57]} (36... g6 37. Qd7+ (37. Qxc8 Qa1+ 38. Kf2 Qa2+ 39. Kf3 Qd5+ 40. Ke2 Qxa5 $16) 37... Kh8 38. Qxc8+ Kg7 39. Qd7+ Kf8 40. Qd8+ Kf7 41. Qc7+ Kg8 42. Qc4+ Kg7 43. Qc7+ Kg8 44. Qc8+ Kg7 45. Qd7+ Kf8 46. Qd6+ Kf7 47. Qd7+ Kf8) 37. Qxc8 $18 {White threatens Qh8+ and mate. KQ-KQ} Kh7 {[%emt 0:01:42] Prevents Qh8+.} 38. Qf5+ {[%emt 0:04:14]} Kg8 {[%emt 0:00:00]} 39. Qc5 {[%emt 0:01:47]} (39. Kf1 $142) 39... Qe2 {[%emt 0:00:47]} 40. d5 {[%emt 0:00:14]} (40. Qa3 $18 {aiming for a6.} Kf7 41. Qc3) 40... Qe1+ {[%emt 0:00:42]} (40... Qd2 $16 {might work better.} 41. d6 (41. a6 Qe1+ 42. Kg2 Qe2+ 43. Kg3 Qe1+ 44. Kf3 Qf1+ 45. Ke4 Qb1+ 46. Kd4 Qa1+ 47. Kc4 Qxa6+ 48. Qb5 Qa3 $18) 41... Kf7 42. Qc4+ Kf8 43. Qc8+ Kf7 44. Qd7+ Kg6 45. Qe8+ Kh7 46. Qe4+ (46. d7 Qe1+ 47. Kh2 Qf2+ 48. Kh1 Qe1+ 49. Kh2 Qf2+ 50. Kh1 Qe1+ 51. Kh2 $11) 46... Kg8 47. Qe8+ Kh7 48. Qe4+ (48. d7 Qe1+ 49. Kh2 Qf2+ 50. Kh1 Qe1+ 51. Kh2 Qf2+ 52. Kh1 Qe1+ 53. Kh2 $11) 48... Kh6) 41. Kg2 {[%emt 0:00:05]} Qe2+ {[%emt 0:00:31][%mdl 8192]} (41... Qd2+ $1 $11 {and Black has nothing to worry.} 42. Kf3 Qd3 43. Qc8+ Kf7 44. Qc7+ Kg6) 42. Kg3 {[%emt 0:00:05]} Qe1+ $2 {[%emt 0:00:25]} (42... Kf7 {was necessary.} 43. Qc3 Ke7 44. Qa3+ Kf7) 43. Kf3 $1 {[%emt 0:00:04] And now d6 would win.} Qf1+ $2 {[%emt 0:00:36][%mdl 8192]} (43... Qd1+ $11 44. Ke4 Qb1+ 45. Kd4 Qd1+ 46. Kc4 f5 47. Qc8+ Kh7 48. Qxf5+ g6 49. Qf7+ Kh8 50. Qf8+ Kh7) 44. Ke4 {[%emt 0:00:06]} Qb1+ {[%emt 0:00:19]} 45. Kd4 {[%emt 0:00:18]} Qd1+ {[%emt 0:00:19] [#]} 46. Kc4 $1 {[%emt 0:00:41] Strongly threatening Kb5.} Qe2+ $2 {[%emt 0:00:46][%mdl 8192]} (46... Qf1+ $11 47. Kb4 Qb1+ 48. Ka4 Qe4+ 49. Kb5 Qb1+ 50. Kc6 Qb8) 47. Kb4 {[%emt 0:00:06] d6 would kill now.} Qb2+ {[%emt 0:00:36] [#]} 48. Ka4 $1 {[%emt 0:00:06] White mates.} Qa2+ {[%emt 0:00:32]} 49. Kb5 {[%emt 0:00:07]} Qe2+ {[%emt 0:00:29]} 50. Kb6 {[%emt 0:00:33]} Qb2+ {[%emt 0:00:13]} 51. Ka7 {[%emt 0:00:07]} Qe5 {[%emt 0:00:45]} 52. Qc8+ {[%emt 0:00:07] Weighted Error Value: White=0.13 (very precise) /Black=0.93} 1-0

[Event "CCC-GM 2022"]
[Site "Ballerup"]
[Date "2022.05.27"]
[Round "5.5"]
[White "Olsen, Filip Boe"]
[Black "Nielsen, Viktor Haarmark"]
[Result "1/2-1/2"]
[ECO "E10"]
[WhiteElo "2407"]
[BlackElo "2323"]
[Annotator "TA"]
[PlyCount "61"]
[EventDate "2022.05.25"]
[EventType "tourn"]
[EventCountry "DEN"]
[SourceTitle "playchess.com"]
[Source "ChessBase"]
[SourceQuality "1"]
[TimeControl "5400+30"]

{[%evp 13,61,12,19,14,7,20,29,23,33,33,38,30,31,31,38,13,8,15,7,14,20,9,12,18,26,17,12,14,26,26,20,21,14,10,9,10,7,3,4,2,14,3,20,24,25,25,20,20,20,5]} 1. d4 {[%emt 0:00:03]} Nf6 {[%emt 0:00:07]} 2. c4 {[%emt 0:00:08]} e6 {[%emt 0:00:04]} 3. Nf3 {[%emt 0:00:13]} d5 {[%emt 0:00:15]} 4. g3 {[%emt 0:00:07]} Bb4+ {[%emt 0:00:07]} 5. Bd2 {[%emt 0:00:06]} Bd6 {[%emt 0:00:10]} 6. Qc2 {[%emt 0:00:14]} O-O {[%emt 0:00:40]} 7. Bg2 {[%emt 0:00:17]} c6 {[%emt 0:00:15]} 8. Nc3 {[%emt 0:00:08] D30: Queen's Gambit Declined: Systems without Nc3.} Nbd7 {[%emt 0:02:07]} 9. b3 {[%emt 0:00:31]} b6 {[%emt 0:08:00]} 10. O-O {[%emt 0:00:20] White has an edge.} Bb7 {[%emt 0:00:57]} 11. e4 {[%emt 0:00:32]} Nxe4 {[%emt 0:01:17]} 12. Nxe4 {[%emt 0:00:02]} dxe4 {[%emt 0:00:08]} 13. Qxe4 {[%emt 0:00:35]} Nf6 {[%emt 0:01:53]} 14. Qc2 {[%emt 0:04:30]} c5 {[%emt 0:01:35]} 15. dxc5 {[%emt 0:01:24]} Be4 {[%emt 0:05:56]} 16. Qb2 {[%emt 0:04:48]} Bxc5 {[%emt 0:00:28]} 17. Bc3 {[%emt 0:01:05] [#]} Be7 $146 {[%emt 0:00:42]} ({Predecessor:} 17... Qe7 18. b4 Bd6 19. Rfe1 Bxf3 20. Bxf3 Rac8 21. Be2 e5 22. Bf1 Rfe8 23. Rad1 Qe6 {1-0 (50) Kunte,A (2505)-Tarini,G (2034) Ahmedabad 2017}) 18. Rfe1 {[%emt 0:25:37][%cal Oe1e4]} Bc6 {[%emt 0:04:37]} 19. Ne5 {[%emt 0:07:52]} (19. Qc2 $5 {[%cal Rf3g5]}) 19... Bxg2 {[%emt 0:00:19]} 20. Kxg2 {[%emt 0:00:05]} Qc7 {[%emt 0:01:02]} 21. Qe2 {[%emt 0:01:49]} b5 {[%emt 0:14:53]} 22. Qf3 {[%emt 0:01:19]} bxc4 {[%emt 0:02:46]} 23. Nxc4 {[%emt 0:02:04]} Nd5 {[%emt 0:05:45]} 24. Be5 {[%emt 0:01:10]} Qb7 {[%emt 0:02:56]} 25. Kg1 {[%emt 0:05:36]} Rad8 {[%emt 0:01:28][%cal Ba8d8,Bd8d7,Bd7b7][%mdl 32]} 26. Red1 {[%emt 0:08:06]} Rd7 {[%emt 0:01:21]} 27. h4 {[%emt 0:04:20]} Bf6 {[%emt 0:07:49]} 28. Bxf6 {[%emt 0:02:31]} Nxf6 {[%emt 0:00:10]} 29. Qxb7 {[%emt 0:00:07]} Rxb7 {[%emt 0:00:05]} 30. Rd6 {[%emt 0:00:51]} Ne4 {[%emt 0:05:12]} 31. Rd4 {[%emt 0:00:49] Weighted Error Value: White=0.04 (flawless) /Black=0.03 (flawless)} 1/2-1/2

[Event "CCC-GM 2022"]
[Site "Ballerup"]
[Date "2022.05.28"]
[Round "6.1"]
[White "Brondt, Nicolai Kvist"]
[Black "Haubro, Martin"]
[Result "1/2-1/2"]
[ECO "D31"]
[WhiteElo "2241"]
[BlackElo "2428"]
[Annotator "TA"]
[PlyCount "67"]
[EventDate "2022.05.25"]
[EventType "tourn"]
[EventCountry "DEN"]
[SourceTitle "playchess.com"]
[Source "ChessBase"]
[SourceQuality "1"]
[TimeControl "5400+30"]

{[%evp 9,67,25,35,33,35,35,35,25,35,32,29,35,38,35,35,23,77,35,16,39,46,0,118,13,22,0,3,0,0,0,97,91,83,86,86,66,51,-8,22,32,95,0,51,-14,21,17,22,26,37,7,52,24,37,36,50,47,57,61,56,14]} 1. d4 {[%emt 0:02:25]} d5 {[%emt 0:00:04]} 2. c4 {[%emt 0:00:05]} e6 {[%emt 0:00:04]} 3. Nc3 {[%emt 0:00:04]} a6 {[%emt 0:00:13]} 4. cxd5 {[%emt 0:00:06]} exd5 {[%emt 0:00:06]} 5. Nf3 {[%emt 0:00:02]} Nf6 {[%emt 0:04:26]} 6. Bg5 {[%emt 0:00:07] D37: Queen's Gambit Declined: 5 Bf4.} Be6 {[%emt 0:01:06]} 7. e3 {[%emt 0:01:35]} Nbd7 {[%emt 0:00:08]} 8. h3 {[%emt 0:02:16]} c6 {[%emt 0:01:13]} 9. Bd3 {[%emt 0:00:30]} Bd6 {[%emt 0:00:46]} 10. Bf4 {[%emt 0:02:53]} Qc7 {[%emt 0:00:38]} 11. Bxd6 {[%emt 0:01:28]} Qxd6 {[%emt 0:00:05]} 12. O-O {[%emt 0:01:54] [#]} O-O-O $146 {[%emt 0:21:04]} (12... O-O $11) ({Predecessor:} 12... O-O 13. Qb3 Rfe8 14. a4 a5 15. Qa3 Qb8 16. b4 axb4 17. Qxb4 Nf8 18. Rfb1 Ra7 {1-0 (33) Yilmaz,M (2631)-Andreikin,D (2729) Chess.com INT 2022}) 13. Ng5 {[%emt 0:29:50]} h6 {[%emt 0:02:11]} 14. Nxe6 {[%emt 0:02:49]} fxe6 {[%emt 0:00:06]} 15. Qa4 {[%emt 0:15:45]} (15. b4 $1 $14) 15... Nb8 {[%emt 0:13:17]} (15... Kb8 $11 {remains equal.}) 16. Rad1 {[%emt 0:02:00]} (16. b4 $16) 16... g5 $11 {[%emt 0:02:34]} 17. e4 {[%emt 0:01:14]} dxe4 {[%emt 0:00:11]} 18. Nxe4 {[%emt 0:00:49]} Nxe4 {[%emt 0:00:06]} 19. Bxe4 {[%emt 0:00:03]} g4 {[%emt 0:11:26]} (19... Nd7 $11) 20. hxg4 $16 {[%emt 0:01:37]} h5 {[%emt 0:00:43]} 21. g5 {[%emt 0:03:07] White is more active.} Qf4 {[%emt 0:00:48][%csl LRe4,LRg5]} 22. Qc2 {[%emt 0:03:07] aiming for g6.} Qxg5 {[%emt 0:00:47]} 23. Qc5 {[%emt 0:01:56] Prevents Rd6.} (23. f4 $14 Qg7 24. f5 exf5 25. Bxf5+ Kc7 26. d5) 23... Rhg8 {[%emt 0:16:42]} 24. Rfe1 {[%emt 0:06:43]} Qf6 {[%emt 0:11:12]} (24... Qxc5 $14 25. dxc5 Rg5) 25. Qe5 {[%emt 0:02:29]} (25. Qxh5 $16 Rh8 26. Qg6 (26. Qe5 Qh6 $14)) 25... Rdf8 {[%emt 0:02:00]} (25... Qxe5 $1 $11 26. dxe5 Rg5) 26. Rd2 {[%emt 0:03:19]} (26. Qxf6 $14 Rxf6 27. Bc2) 26... Nd7 {[%emt 0:04:41]} 27. Qxf6 {[%emt 0:04:20]} (27. Qd6 {is interesting.} Qf4 28. Qxf4 Rxf4 29. Bc2) 27... Rxf6 {[%emt 0:00:25]} 28. Bc2 {[%emt 0:00:24]} Kc7 {[%emt 0:00:19]} 29. Rde2 {[%emt 0:01:03]} (29. Bb3 {is more complex.} Kd6 30. Rde2 Rgg6 31. Re5) 29... Nf8 {[%emt 0:02:03]} 30. Re5 {[%emt 0:00:47]} Rh8 {[%emt 0:02:05]} 31. R1e3 {[%emt 0:00:15] White is slightly better.} Rf4 {[%emt 0:01:29]} 32. R3e4 {[%emt 0:02:00]} Rxe4 {[%emt 0:00:13]} 33. Rxe4 {[%emt 0:00:06]} Kd6 {[%emt 0:00:04]} 34. Bb3 {[%emt 0:03:00] Weighted Error Value: White=0.28 (precise) /Black=0.28 (precise)} 1/2-1/2

[Event "CCC-GM 2022"]
[Site "Ballerup"]
[Date "2022.05.28"]
[Round "6.2"]
[White "Nielsen, Viktor Haarmark"]
[Black "Hacker, Jonas"]
[Result "0-1"]
[ECO "B48"]
[WhiteElo "2323"]
[BlackElo "2396"]
[Annotator "TA"]
[PlyCount "50"]
[EventDate "2022.05.25"]
[EventType "tourn"]
[EventCountry "DEN"]
[SourceTitle "playchess.com"]
[Source "ChessBase"]
[SourceQuality "1"]
[TimeControl "5400+30"]

{[%evp 11,50,27,50,0,0,7,23,-14,-17,0,0,0,0,0,0,0,14,0,-10,-12,0,0,0,0,0,0,0,-60,-50,-134,-137,-271,-269,-273,-286,-262,-264,-331,-331,-408,-405]} 1. e4 {[%emt 0:00:02]} c5 {[%emt 0:00:17]} 2. Nf3 {[%emt 0:00:06]} e6 {[%emt 0:00:05]} 3. d4 {[%emt 0:00:04]} cxd4 {[%emt 0:00:07]} 4. Nxd4 {[%emt 0:00:05]} Nc6 {[%emt 0:00:29]} 5. Nc3 {[%emt 0:00:44][%cal Bb1c3,Bc3e2,Be2f4][%mdl 32]} Qc7 {[%emt 0:00:35]} 6. Be3 {[%emt 0:00:08]} a6 {[%emt 0:00:06]} 7. g4 {[%emt 0:00:05] B48: Sicilian: Taimanov: 5 Nc3 Qc7 6 Be3 a6 without Be2.} b5 {[%emt 0:00:36][%cal Bb7b5,Bb5b4][%mdl 32]} 8. Nxc6 {[%emt 0:00:21]} Qxc6 {[%emt 0:00:13]} 9. Qd2 {[%emt 0:00:06] White has an edge.} b4 {[%emt 0:01:41]} 10. Ne2 {[%emt 0:03:40]} Qxe4 {[%emt 0:00:42]} 11. Rg1 {[%emt 0:00:07] aiming for Bg2.} Qc6 {[%emt 0:00:29]} 12. Bg2 {[%emt 0:04:54]} d5 {[%emt 0:00:11][%cal Bd7d5,Bd5e4,Be4e3][%mdl 32]} 13. O-O-O {[%emt 0:00:33] [#]} Bb7 $146 {[%emt 0:02:47]} ({Predecessor:} 13... Bd7 14. Rge1 Ne7 15. Nf4 Rc8 16. Kb1 a5 17. h4 Qd6 18. g5 a4 19. Bd4 h6 {1-0 (33) Rojas,J (2251)-Enguidanos Gimeno,S (2058) ICCF email 2020}) 14. Nf4 {[%emt 0:04:54]} Nf6 {[%emt 0:04:29]} 15. Bd4 {[%emt 0:05:57]} Rc8 {[%emt 0:10:30]} 16. g5 {[%emt 0:32:27]} Ne4 {[%emt 0:06:41]} 17. Bxe4 {[%emt 0:01:09]} dxe4 {[%emt 0:00:27]} 18. Nh5 {[%emt 0:01:20]} Rg8 {[%emt 0:08:14]} ({Much less strong is} 18... Rd8 19. Qf4 Rc8 20. Rd2 $18) 19. Bf6 {[%emt 0:03:42]} Qd5 $15 {[%emt 0:02:48]} 20. b3 {[%emt 0:11:10] [#]} Qxd2+ $1 $17 {[%emt 0:04:44]} 21. Rxd2 {[%emt 0:00:06] [#]} (21. Kxd2 $17 a5 22. Be5) 21... e3 $1 $19 {[%emt 0:06:01]} 22. fxe3 {[%emt 0:09:57][%cal Og1d1] Strongly threatening Rgd1!} Bf3 {[%emt 0:00:36] Prevents Rgd1.} 23. Rgd1 {[%emt 0:00:16]} Bxd1 {[%emt 0:04:26]} 24. Rxd1 {[%emt 0:00:40]} Bc5 {[%emt 0:05:05]} 25. Nxg7+ {[%emt 0:01:25]} Kf8 {[%emt 0:04:18] Weighted Error Value: White=0.28 (precise) /Black=0.03 (flawless)} 0-1

[Event "CCC-GM 2022"]
[Site "Ballerup"]
[Date "2022.05.28"]
[Round "6.3"]
[White "Komarov, Dimitri"]
[Black "Blomqvist, Erik"]
[Result "1/2-1/2"]
[ECO "E39"]
[WhiteElo "2493"]
[BlackElo "2523"]
[Annotator "TA"]
[PlyCount "63"]
[EventDate "2022.05.25"]
[EventType "tourn"]
[EventCountry "DEN"]
[SourceTitle "playchess.com"]
[Source "ChessBase"]
[SourceQuality "1"]
[TimeControl "5400+30"]

{[%evp 14,63,33,14,29,41,41,34,41,41,42,45,69,41,35,44,39,34,36,37,40,19,33,28,35,0,0,0,0,0,0,0,0,0,0,0,0,0,4,4,4,4,11,3,12,12,12,12,12,0,0,-1087]} 1. d4 {[%emt 0:00:02]} Nf6 {[%emt 0:00:14]} 2. c4 {[%emt 0:00:04]} e6 {[%emt 0:00:08]} 3. Nc3 {[%emt 0:00:11]} Bb4 {[%emt 0:01:27]} 4. Qc2 {[%emt 0:00:06]} c5 {[%emt 0:00:10]} 5. dxc5 {[%emt 0:00:36]} O-O {[%emt 0:00:11]} 6. Nf3 {[%emt 0:01:12]} Na6 {[%emt 0:00:16]} 7. g3 {[%emt 0:01:06]} Nxc5 {[%emt 0:00:21]} 8. Bg2 {[%emt 0:00:13]} Nfe4 {[%emt 0:00:58] E39: Nimzo-Indian: Classical: 4...c5 5 dxc5 0-0.} 9. Bd2 {[%emt 0:04:36]} Nxd2 {[%emt 0:01:21]} 10. Nxd2 {[%emt 0:00:04]} Qa5 {[%emt 0:03:05] White is slightly better.} 11. Rc1 {[%emt 0:01:14][%cal Ba1c1,Bc1c3,Bc3d3][%mdl 32]} d6 {[%emt 0:03:45]} 12. O-O {[%emt 0:03:25] [#]} Rb8 $146 {[%emt 0:13:21]} ({Predecessor:} 12... Bd7 13. a3 Bxc3 14. Qxc3 Qxc3 15. Rxc3 Bc6 16. Bxc6 bxc6 17. b4 Na4 18. Rc2 a5 {½-½ (25) Xiong,J (2709)-Sunilduth Lyna,N (2618) Chess.com INT 2020}) 13. a3 {[%emt 0:02:27] White is more active.} Bxc3 {[%emt 0:00:11]} 14. Qxc3 {[%emt 0:00:03]} Qxc3 {[%emt 0:00:15]} 15. Rxc3 {[%emt 0:00:04]} Rd8 {[%emt 0:02:00]} 16. b4 {[%emt 0:03:30]} Na4 {[%emt 0:02:00]} 17. Rd3 {[%emt 0:10:28][%cal Oc4c5]} Kf8 {[%emt 0:06:21]} 18. Nb3 {[%emt 0:03:17]} b6 $1 {[%emt 0:15:13] Prevents Na5.} 19. Nd4 {[%emt 0:10:48] [#] And now Nc6 would win.} Bd7 {[%emt 0:00:57] The position is equal.} 20. Nc6 {[%emt 0:21:45]} Bxc6 {[%emt 0:00:16]} 21. Bxc6 {[%emt 0:00:03]} Nb2 {[%emt 0:00:12][%csl LRc4,LRd3]} 22. Rc3 {[%emt 0:02:31] aiming for Rc2.} Rdc8 {[%emt 0:14:04]} 23. Bb5 {[%emt 0:00:08] [#] Threatens to win with Rc2.} d5 {[%emt 0:00:38][%cal Rb2c4]} 24. Rfc1 {[%emt 0:00:29]} Nxc4 {[%emt 0:00:45]} 25. Bxc4 {[%emt 0:00:06]} dxc4 {[%emt 0:00:12]} 26. Rxc4 {[%emt 0:00:05]} Rxc4 {[%emt 0:00:11]} 27. Rxc4 $11 {[%emt 0:00:04] KR-KR} Rb7 {[%emt 0:00:28] Prevents Rc7.} 28. f4 {[%emt 0:01:12]} f5 {[%emt 0:06:21]} 29. Kf2 {[%emt 0:02:18]} Ke7 {[%emt 0:00:23]} 30. Ke3 {[%emt 0:00:32]} Rd7 {[%emt 0:02:14]} 31. Rd4 {[%emt 0:06:25]} Rc7 {[%emt 0:00:38]} 32. Rc4 $2 {[%mdl 40960] Weighted Error Value: White=0.05 (flawless) /Black=0.03 (flawless) . An unexpected result.} 1/2-1/2